Workbook

Sheet Hoja1
B1: INSTITUTO TECNOLÓGICO SUPERIOR DE PEROTE
B3: VIÁTICOS EJERCIDOS EN EL MES DE: JULIO 2022
A5: ÁREA | B5: OBJETO O MOTIVO DE LA COMISIÓN | C5: SERV. PÚB. COMISIONADOS | D5: LUGAR DE COMISIÓN | E5: DESTINO DE LA COMISIÓN | F5: FECHA DE INICIO | G5: FECHA DE TERMINO | H5: ORIGEN DEL RECURSO | I5: ALIMENTOS | J5: HOSPEDAJE | K5: PASAJES | L5: PEAJES | M5: TRASLADOS LOCALES | N5: COMBUSTIBLE | O5: OTROS GASTOS | P5: IMPORTE EJERCIDO | Q5: RESPONSABLE QUE PROPORCIONA LA INFORMACIÓN
A6: DG | B6: ASISTIR A REALIZAR DIFERENTES COMISIONES | C6: 1 | D6: EDO. | E6: XALAPA | F6: 2022-07-07 | G6: 2022-07-07 | H6: FED. | I6: 206 | L6: 330 | P6: =SUM(I6:O6) -> 536 | Q6: REC. FINANCIEROS
A7: DG | B7: ASISTIR A REALIZAR DIFERENTES COMISIONES | C7: 1 | D7: EDO. | E7: XALAPA | F7: 2022-07-07 | G7: 2022-07-07 | H7: FED. | L7: 90 | N7: 300 | P7: =SUM(I7:O7) -> 390 | Q7: REC. FINANCIEROS
A8: PYV | B8: ASISTIR A EVENTO DEPORTIVO DE EXPO FERIA EDUCATIVA 2022 | C8: 80 | D8: EDO. | E8: BANDERILLA | F8: 2022-07-07 | G8: 2022-07-07 | H8: FED. | I8: 3920.11 | P8: 3920.11 | Q8: REC. FINANCIEROS
A9: ACAD. | B9: ASISTIR A PRIMERA SESIÓN ORDINARIA DEL CONSEJO ASESOR DEL PARQUE NAC. COFRE DE PEROTE | C9: 1 | D9: EDO. | E9: XALAPA | F9: 2022-07-07 | G9: 2022-07-07 | H9: FED. | N9: 150 | P9: 150 | Q9: REC. FINANCIEROS
A10: PYV | B10: ASISTIR A PROMOCIÓN EN TELEBACHILLERATO DE XOLOLOYAN | C10: 1 | D10: EDO. | E10: AYAHUALULCO | F10: 2022-07-07 | G10: 2022-07-07 | H10: FED. | N10: 200 | P10: 200 | Q10: REC. FINANCIEROS
A11: PYV | B11: ASISTIR A REALIZAR DIFERENTES COMISIONES | C11: 1 | D11: EDO. | E11: XALAPA | F11: 2022-07-07 | G11: 2022-07-07 | H11: FED. | I11: 195 | L11: 165 | N11: 300 | P11: 660 | Q11: REC. FINANCIEROS
A12: DG | B12: ASISTIR A REALIZAR DIFERENTES COMISIONES | C12: 1 | D12: EDO. | E12: XALAPA | F12: 2022-07-19 | G12: 2022-07-19 | H12: FED. | I12: 117 | L12: 492 | N12: 400 | P12: 1009 | Q12: REC. FINANCIEROS
A13: DG | B13: ASISTIR A REALIZAR DIFERENTES COMISIONES | C13: 1 | D13: EDO. | E13: XALAPA | F13: 2022-07-19 | G13: 2022-07-19 | H13: FED. | I13: 1440 | L13: 330 | N13: 400 | P13: 2170 | Q13: REC. FINANCIEROS
A14: DG | B14: ASISTIR A REALIZAR DIFERENTES COMISIONES | C14: 1 | D14: EDO. | E14: XALAPA | F14: 2022-07-19 | G14: 2022-07-19 | H14: FED. | I14: 285 | L14: 657 | N14: 562.33 | O14: 22 | P14: 1526.33 | Q14: REC. FINANCIEROS
A15: DG | B15: ASISTIR A REALIZAR DIFERENTES COMISIONES | C15: 1 | D15: EDO. | E15: XALAPA | F15: 2022-07-19 | G15: 2022-07-19 | H15: FED. | I15: 631 | L15: 330 | N15: 400 | O15: 30 | P15: 1391 | Q15: REC. FINANCIEROS
A16: DG | B16: ASISTIR A REALIZAR DIFERENTES COMISIONES | C16: 1 | D16: EDO. | E16: XALAPA | F16: 2022-07-19 | G16: 2022-07-19 | H16: FED. | I16: 205 | L16: 330 | N16: 400 | O16: 30 | P16: 965 | Q16: REC. FINANCIEROS
A17: DG | B17: ASISTIR A REALIZAR DIFERENTES COMISIONES | C17: 1 | D17: EDO. | E17: XALAPA | F17: 2022-07-19 | G17: 2022-07-19 | H17: FED. | I17: 857 | L17: 330 | P17: 1187 | Q17: REC. FINANCIEROS
A18: DG | B18: ASISTIR A REALIZAR DIFERENTES COMISIONES | C18: 1 | D18: EDO. | E18: XALAPA | F18: 2022-07-19 | G18: 2022-07-19 | H18: FED. | I18: 1499 | P18: 1499 | Q18: REC. FINANCIEROS
A19: SA | B19: ASISTIR A REALIZAR DIFERENTES COMISIONES | C19: 1 | D19: EDO. | E19: XALAPA | F19: 2022-07-19 | G19: 2022-07-19 | H19: FED. | L19: 990 | N19: 300 | P19: 1290 | Q19: REC. FINANCIEROS
A20: SA | B20: ASISTIR A REALIZAR DIFERENTES COMISIONES | C20: 1 | D20: EDO. | E20: XALAPA | F20: 2022-07-19 | G20: 2022-07-19 | H20: FED. | L20: 330 | N20: 600 | P20: =SUM(I20:O20) -> 930 | Q20: REC. FINANCIEROS
A21: SA | B21: ASISTIR A REALIZAR DIFERENTES COMISIONES | C21: 1 | D21: EDO. | E21: XALAPA | F21: 2022-07-19 | G21: 2022-07-19 | H21: FED. | N21: 550 | P21: =SUM(I21:O21) -> 550 | Q21: REC. FINANCIEROS
A22: SA | B22: ASISTIR A REALIZAR DIFERENTES COMISIONES | C22: 1 | D22: EDO. | E22: XALAPA | F22: 2022-07-20 | G22: 2022-07-20 | H22: FED. | L22: 330 | N22: 300 | P22: =SUM(I22:O22) -> 630 | Q22: REC. FINANCIEROS
A23: SA | B23: ASISTIR A REALIZAR DIFERENTES COMISIONES | C23: 1 | D23: EDO. | E23: XALAPA | F23: 2022-07-20 | G23: 2022-07-20 | H23: FED. | L23: 165 | N23: 300 | P23: =SUM(I23:O23) -> 465 | Q23: REC. FINANCIEROS
A24: DG | B24: ASISTIR A REALIZAR DIFERENTES COMISIONES | C24: 1 | D24: EDO. | E24: MISANTLA | F24: 2022-07-20 | G24: 2022-07-20 | H24: FED. | L24: 598 | N24: 740.88 | P24: =SUM(I24:O24) -> 1338.88 | Q24: REC. FINANCIEROS
A25: DG | B25: ASISTIR A REALIZAR DIFERENTES COMISIONES | C25: 1 | D25: EDO. | E25: XALAPA | F25: 2022-07-20 | G25: 2022-07-20 | H25: FED. | L25: 704 | P25: =SUM(I25:O25) -> 704 | Q25: REC. FINANCIEROS
A26: DG | B26: ASISTIR A REALIZAR DIFERENTES COMISIONES | C26: 1 | D26: EDO. | E26: XALAPA | F26: 2022-07-20 | G26: 2022-07-20 | H26: FED. | L26: 109 | P26: =SUM(I26:O26) -> 109 | Q26: REC. FINANCIEROS
A27: ACAD. | B27: ASISTIR A REALIZAR DIFERENTES COMISIONES | C27: 1 | D27: EDO. | E27: MEXICO | F27: 2022-07-20 | G27: 2022-07-20 | H27: FED. | I27: 487 | L27: 640 | N27: 500 | P27: =SUM(I27:O27) -> 1627 | Q27: REC. FINANCIEROS
A28: SA | B28: ASISTIR A REALIZAR DIFERENTES COMISIONES | C28: 1 | D28: EDO. | E28: XALAPA | F28: 2022-07-20 | G28: 2022-07-20 | H28: FED. | L28: 165 | N28: 300 | P28: =SUM(I28:O28) -> 465 | Q28: REC. FINANCIEROS
A29: PYV | B29: ASISTIR A EXPOSICIÓN DE PROYECTOS | C29: 3 | D29: EDO. | E29: PEROTE | F29: 2022-07-20 | G29: 2022-07-20 | H29: FED. | I29: 450 | N29: 150 | P29: =SUM(I29:O29) -> 600 | Q29: REC. FINANCIEROS
A30: PYV | B30: ASISTIR A LA EXPO FERIA CON STAND DEL INSTITUTO | C30: 1 | D30: EDO. | E30: LAS VIGAS | F30: 2022-07-20 | G30: 2022-07-20 | H30: FED. | I30: 278.4 | N30: 150 | P30: =SUM(I30:O30) -> 428.4 | Q30: REC. FINANCIEROS
A31: PYV | B31: ASISTIR A ENTREGA DE OFICIOS A DIRECTORES DE BACHILLERATOS | C31: 1 | D31: EDO. | E31: PEROTE Y MUNICIPIOS | F31: 2022-07-20 | G31: 2022-07-20 | H31: FED. | N31: 250 | P31: =SUM(I31:O31) -> 250 | Q31: REC. FINANCIEROS
A32: PYV | B32: ASISTIR A ENTREVISTA EN LA RADIO "EN CONTACTO" | C32: 1 | D32: EDO. | E32: XALAPA | F32: 2022-07-20 | G32: 2022-07-20 | H32: FED. | K32: 167 | O32: 135 | P32: =SUM(I32:O32) -> 302 | Q32: REC. FINANCIEROS
A33: ACAD. | B33: ASISTIR AL ITS DE MISANTLA | C33: 1 | D33: EDO. | E33: MISANTLA | F33: 2022-07-27 | G33: 2022-07-27 | H33: FED. | N33: 435 | P33: =SUM(I33:O33) -> 435 | Q33: REC. FINANCIEROS
A34: DG | B34: ASISTIR A REALIZAR DIFERENTES COMISIONES | C34: 1 | D34: EDO. | E34: XALAPA | F34: 2022-07-27 | G34: 2022-07-27 | H34: FED. | L34: 90 | N34: 500 | P34: =SUM(I34:O34) -> 590 | Q34: REC. FINANCIEROS
A35: DG | B35: ASISTIR REUNIÓN DE TRABAJO ANTE EL GOBERNADOR DEL ESTADO | C35: 1 | D35: EDO. | E35: XALAPA | F35: 2022-07-27 | G35: 2022-07-27 | H35: FED. | I35: 135 | L35: 689 | P35: =SUM(I35:O35) -> 824 | Q35: REC. FINANCIEROS
A36: PYV | B36: ASISTIR A MODULO DE PROMOCIÓN EN DIFERENTES MUNICIPIOS | C36: 4 | D36: EDO. | E36: ACAJETE, ATZALAN, VILLA ALDAMA | F36: 2022-07-27 | G36: 2022-07-27 | H36: FED. | I36: 1500 | N36: 1100 | P36: =SUM(I36:O36) -> 2600 | Q36: REC. FINANCIEROS
A37: DG | B37: ASISTIR A REALIZAR DIFERENTES COMISIONES | C37: 1 | D37: EDO. | E37: XALAPA | F37: 2022-07-27 | G37: 2022-07-27 | H37: FED. | L37: 657 | N37: 300 | P37: =SUM(I37:O37) -> 957 | Q37: REC. FINANCIEROS
A38: DG | B38: ASISTIR A REALIZAR DIFERENTES COMISIONES | C38: 1 | D38: EDO. | E38: XALAPA | F38: 2022-07-27 | G38: 2022-07-27 | H38: FED. | I38: 379 | L38: 330 | N38: 515.16 | P38: =SUM(I38:O38) -> 1224.16 | Q38: REC. FINANCIEROS
A39: ACAD. | B39: ASISTIR A LAS INSTALACIONES DEL CECYTEV | C39: 1 | D39: EDO. | E39: ATZALAN | F39: 2022-07-27 | G39: 2022-07-27 | H39: FED. | N39: 350 | P39: =SUM(I39:O39) -> 350 | Q39: REC. FINANCIEROS
A40: PYV | B40: ASISTIR A REVISIÓN DE INFORMACIÓN PARA EL 4TO INFORME DE GOBIERNO | C40: 1 | D40: EDO. | E40: XALAPA | F40: 2022-07-28 | G40: 2022-07-28 | H40: FED. | N40: 649.8 | P40: =SUM(I40:O40) -> 649.8 | Q40: REC. FINANCIEROS
A41: SA | B41: ASISTIR A REALIZAR DIFERENTES COMISIONES | C41: 1 | D41: EDO. | E41: XALAPA | F41: 2022-07-29 | G41: 2022-07-29 | H41: FED. | L41: 165 | N41: 300 | P41: =SUM(I41:O41) -> 465 | Q41: REC. FINANCIEROS
A42: SIND. | B42: ASISTIR A REUNIÓN EN FESTEV | C42: 3 | D42: EDO. | E42: XALAPA | F42: 2022-07-29 | G42: 2022-07-29 | H42: FED. | I42: 600 | P42: =SUM(I42:O42) -> 600 | Q42: REC. FINANCIEROS
A43: PYV | B43: ASISTIR A LA ENTREGA-RECEPCIÓN EN LA DET | C43: 1 | D43: EDO. | E43: XALAPA | F43: 2022-07-29 | G43: 2022-07-29 | H43: FED. | N43: 250 | P43: =SUM(I43:O43) -> 250 | Q43: REC. FINANCIEROS
A46: ACAD. | B46: DIRECCIÓN ACADÉMICA
A47: SIND. | B47: SINDICATO
A48: ADMO. | B48: SUBDIRECCIÓN ADMINISTRATIVA
A49: FED. | B49: RECURSO FEDERAL
A50: I.P. | B50: INGRESOS PROPIOS

Sheet Hoja2

Sheet Hoja3
